bitfinex/quotes_SOLUSD_20241028
["timestamp","ask_amount","ask_price","bid_price","bid_amount"]
[1730101600633,70.0,176.14,176.1,9.02464336]
[1730101600845,79.02464336,176.14,176.08,14.70374336]
[1730101601460,70.0,176.12,176.04,19.8818]
[1730101601752,70.0,176.1,176.05,9.02464336]
[1730101601956,14.70354336,176.09,176.04,28.90644336]
[1730101602150,14.70354336,176.09,176.04,19.8818]
[1730101602552,75.6786,176.1,176.05,9.02464336]
[1730101603056,75.6786,176.1,176.06,9.02464336]
[1730101603554,75.6786,176.1,176.05,9.02464336]
[1730101604643,75.6786,176.1,176.05,14.70474336]
[1730101604847,9.02464336,176.09,176.05,5.6801]
[1730101605750,14.70354336,176.09,176.05,5.6801]
[1730101606666,9.02464336,176.08,176.04,5.6805]
[1730101606954,9.02464336,176.05,176.0,19.8855]
[1730101607150,79.02464336,176.05,176.0,14.2038]
[1730101608135,70.0,176.03,175.98,9.02464336]
[1730101608456,9.02464336,176.02,175.97,9.02464336]
[1730101608861,5.6814,176.01,175.97,9.02464336]
[1730101609263,9.02464336,176.0,175.94,14.70804336]
[1730101610357,70.0,175.99,175.94,9.02464336]
[1730101610946,75.6821,175.99,175.94,14.70834336]
[1730101612836,75.6821,175.99,175.94,9.02464336]
[1730101613036,30.0,175.98,175.94,9.02464336]
[1730101614066,30.0,175.98,175.94,14.70814336]
[1730101614765,75.6821,175.99,175.94,14.70814336]
[1730101615757,70.0,175.99,175.94,14.70814336]
[1730101615967,70.0,176.01,175.96,9.02464336]
[1730101616652,70.0,176.01,175.97,9.02464336]
[1730101617048,70.0,176.01,175.96,9.02464336]
[1730101617247,75.6816,176.01,175.96,9.02464336]
[1730101618154,75.6816,176.01,175.96,14.70744336]
[1730101618569,75.6816,176.01,175.97,9.02464336]
[1730101620275,75.6816,176.01,175.97,14.70734336]
[1730101620647,75.6816,176.01,175.97,9.02464336]
[1730101620846,84.70624336,176.01,175.96,5.6829]
[1730101621065,9.02464336,175.98,175.94,14.2093]
[1730101621246,14.70714336,175.98,175.94,14.2093]
[1730101621947,79.02464336,175.97,175.92,5.6844]
[1730101622174,9.02464336,175.96,175.91,19.8962]
[1730101623259,84.70764336,175.97,175.91,28.92084336]
[1730101623442,70.0,175.93,175.87,21.0519]
[1730101623646,70.0,175.93,175.88,9.02464336]
[1730101624774,70.0,175.93,175.89,5.6853]
[1730101624981,70.0,175.93,175.89,14.70994336]
[1730101625361,9.02464336,175.92,175.88,5.6856]
[1730101625574,9.02464336,175.9,175.84,9.02464336]
[1730101625889,79.02464336,175.89,175.83,28.92954336]
[1730101626377,9.02464336,175.88,175.83,28.92954336]
[1730101626590,14.1360069,175.88,175.83,34.0409069]
[1730101626878,84.1360069,175.86,175.8,19.8242069]
[1730101627088,70.0,175.86,175.81,14.1360069]
[1730101627286,84.1360069,175.86,175.8,19.8242069]
[1730101627977,89.8223069,175.86,175.8,19.8242069]
[1730101628189,75.6863,175.86,175.81,14.1360069]
[1730101629487,30.0,175.85,175.81,14.1360069]
[1730101629882,30.0,175.85,175.81,19.8238069]
[1730101630066,70.0,175.84,175.81,5.6878]
[1730101630265,70.0,175.84,175.8,19.8242069]
[1730101631865,70.0,175.84,175.8,5.6882]
[1730101632079,84.1360069,175.84,175.8,5.6882]
[1730101632383,89.8230069,175.84,175.79,34.0451069]
[1730101632610,84.1360069,175.84,175.79,34.0451069]
[1730101632882,70.0,175.84,175.8,14.1360069]
[1730101633473,75.687,175.84,175.79,34.0451069]
[1730101634276,30.0,175.83,175.79,34.0451069]
[1730101634682,30.0,175.83,175.79,14.2208]
[1730101635390,44.1360069,175.83,175.79,14.2208]
[1730101636466,14.1360069,175.83,175.79,14.2208]
[1730101638162,75.687,175.84,175.79,28.3568069]
[1730101638400,75.687,175.84,175.8,14.1360069]
[1730101639498,89.8230069,175.84,175.79,28.3568069]
[1730101641084,30.0,175.82,175.79,28.3568069]
[1730101641498,30.0,175.82,175.79,14.1360069]
[1730101641680,105.6876,175.82,175.78,14.1360069]
[1730101641882,119.8236069,175.82,175.77,14.7344148]
[1730101642208,89.8236069,175.82,175.77,14.7344148]
[1730101644093,5.6882,175.8,175.77,0.5984079]
[1730101644304,70.0,175.78,175.77,0.5984079]
[1730101644603,84.3869869,175.78,175.77,0.5984079]
[1730101644810,84.1360069,175.78,175.77,0.5984079]
[1730101645387,114.1360069,175.78,175.77,0.5984079]
[1730101646207,143.7272809,175.78,175.77,0.5984079]
[1730101646708,119.8249069,175.78,175.77,0.5984079]
[1730101648506,175.07258867,175.78,175.77,0.5984079]
[1730101649184,175.17258867,175.78,175.77,0.5984079]
[1730101649503,175.27258867,175.78,175.77,0.5984079]
[1730101650410,70.0,175.68,175.61,22.3282]
[1730101650707,9.06092467,175.67,175.61,45.62512467]
[1730101650908,79.06092467,175.68,175.63,9.06092467]
[1730101651087,79.06092467,175.68,175.61,36.5642]
[1730101651296,70.0,175.66,175.61,45.62512467]
[1730101652384,75.6929,175.66,175.61,45.62512467]
[1730101652585,9.06092467,175.67,175.61,45.62512467]
[1730101652586,70.0,175.68,175.61,50.73503662]
[1730101652825,89.86263662,175.7,175.65,14.17083662]
[1730101653115,14.17083662,175.69,175.64,14.17083662]
[1730101653295,70.0,175.66,175.61,14.17083662]
[1730101654325,70.0,175.66,175.63,14.17083662]
[1730101654502,70.0,175.66,175.62,14.17083662]
[1730101654712,14.17083662,175.68,175.63,14.17083662]
[1730101654713,84.17083662,175.68,175.63,14.17083662]
[1730101655300,89.86303662,175.68,175.63,14.17083662]
[1730101655808,75.6922,175.68,175.64,14.17083662]
[1730101656119,75.6922,175.68,175.63,14.17083662]
[1730101656319,75.6922,175.68,175.63,19.86453662]
[1730101657202,75.6922,175.68,175.64,14.17083662]
[1730101657518,70.0,175.68,175.64,34.09783662]
[1730101657819,70.0,175.68,175.66,14.17083662]
[1730101658031,70.0,175.68,175.65,14.17083662]
[1730101658596,70.0,175.7,175.67,14.17083662]
[1730101658918,70.0,175.7,175.66,14.17083662]
[1730101659219,70.0,175.7,175.67,14.17083662]
[1730101659416,75.6908,175.72,175.67,19.86313662]
[1730101660430,70.0,175.74,175.69,14.17083662]
[1730101660727,70.0,175.74,175.7,14.17083662]
[1730101661617,70.0,175.76,175.72,14.17083662]
[1730101661798,14.17083662,175.78,175.7,19.9199]
[1730101661799,70.0,175.78,175.75,14.17083662]
[1730101662004,70.0,175.78,175.7,19.9199]
[1730101662307,70.0,175.78,175.73,14.17083662]
[1730101662502,70.0,175.76,175.73,14.17083662]
[1730101662912,70.0,175.78,175.74,14.17083662]
[1730101663130,75.689,175.78,175.73,14.17083662]
[1730101663613,75.689,175.78,175.74,14.17083662]
[1730101663797,70.0,175.78,175.75,14.17083662]
[1730101663999,75.689,175.78,175.74,14.17083662]
[1730101664228,75.689,175.78,175.73,14.17083662]
[1730101664618,75.689,175.78,175.74,14.17083662]
[1730101665202,75.689,175.78,175.73,19.86123662]
[1730101665799,75.689,175.78,175.74,14.17083662]
[1730101666220,70.0,175.75,175.68,14.2298]
[1730101666524,70.0,175.77,175.73,14.17083662]
[1730101667611,89.86013662,175.77,175.71,28.39873662]
[1730101667834,89.86013662,175.77,175.71,34.08983662]
[1730101668811,70.0,175.75,175.7,14.17083662]
[1730101669215,84.17083662,175.75,175.7,14.17083662]
[1730101669417,70.0,175.75,175.72,14.17083662]
[1730101669801,70.0,175.75,175.71,19.86193662]
[1730101670103,75.6899,175.75,175.71,14.17083662]
[1730101670820,89.86073662,175.75,175.7,14.17083662]
[1730101671320,14.17083662,175.74,175.69,14.17083662]
[1730101671922,84.17083662,175.72,175.67,14.17083662]
[1730101672519,79.06437069,175.72,175.66,9.06437069]
[1730101672718,70.0,175.72,175.66,9.06437069]
[1730101673017,79.06437069,175.7,175.65,14.2327]
[1730101673220,79.06437069,175.7,175.64,9.06437069]
[1730101673523,79.06437069,175.7,175.64,14.75767069]
[1730101673725,79.06437069,175.7,175.64,9.06437069]
[1730101673919,5.6918,175.69,175.64,9.06437069]
[1730101674420,5.6918,175.69,175.64,5.6933]
[1730101674612,5.6918,175.69,175.64,19.85960391]
[1730101677030,5.6918,175.69,175.65,14.16630391]
[1730101677223,5.6918,175.69,175.64,14.16630391]
[1730101677561,70.0,175.68,175.63,14.16630391]
[1730101678121,70.0,175.68,175.64,14.16630391]
[1730101678624,75.6922,175.68,175.63,19.85990391]
[1730101679236,75.6922,175.68,175.65,14.16630391]
[1730101679656,70.0,175.7,175.67,14.16630391]
[1730101679936,5.6912,175.71,175.67,14.16630391]
[1730101680310,70.0,175.7,175.67,14.16630391]
[1730101680627,75.6916,175.7,175.66,14.16630391]
[1730101680931,75.6916,175.7,175.66,19.85900391]
[1730101681113,75.6916,175.7,175.66,14.16630391]
[1730101682644,14.16630391,175.69,175.64,19.85960391]
[1730101682843,84.16630391,175.68,175.63,28.40070391]
[1730101683021,14.16630391,175.67,175.62,14.16630391]
[1730101684316,84.16630391,175.65,175.6,14.8353079]
[1730101685226,70.0,175.65,175.6,34.69631181]
[1730101685837,70.0,175.65,175.61,14.16630391]
[1730101686324,70.0,175.65,175.6,20.5300079]
[1730101686325,70.0,175.65,175.6,14.8353079]
[1730101686537,14.16630391,175.61,175.6,0.5984079]
[1730101686729,34.16630391,175.61,175.6,0.5984079]
[1730101686920,58.19416791,175.61,175.6,0.5984079]
[1730101688321,58.06867791,175.61,175.6,0.5984079]
[1730101688528,63.76307791,175.61,175.6,0.5984079]
[1730101689047,63.63758791,175.61,175.6,0.5984079]
[1730101689240,20.0,175.61,175.6,0.5984079]
[1730101689414,75.6941,175.62,175.6,0.5984079]
[1730101689610,89.86040391,175.62,175.6,0.5984079]
[1730101689837,14.16630391,175.61,175.6,0.5984079]
[1730101690034,75.6941,175.62,175.6,0.5984079]
[1730101690338,14.16630391,175.61,175.6,0.5984079]
[1730101690637,19.86070391,175.61,175.6,0.5984079]
[1730101691016,84.16630391,175.64,175.6,0.5984079]
[1730101691238,84.16630391,175.64,175.62,14.16630391]
[1730101691239,70.0,175.64,175.62,14.16630391]
[1730101691450,70.0,175.64,175.6,14.76471181]
[1730101691623,70.0,175.64,175.6,0.5984079]
[1730101692348,75.6937,175.64,175.6,0.5984079]
[1730101693426,70.0,175.62,175.6,0.5984079]
[1730101693634,70.0,175.65,175.61,14.16630391]
[1730101693820,70.0,175.69,175.64,14.16630391]
[1730101694032,75.6919,175.69,175.64,14.16630391]
[1730101694242,70.0,175.66,175.64,14.16630391]
[1730101695945,5.6931,175.65,175.63,14.16630391]
[1730101696116,70.0,175.66,175.63,14.16630391]
[1730101696533,70.0,175.66,175.6,0.5984079]
[1730101696534,70.0,175.66,175.64,14.16630391]
[1730101699827,70.0,175.66,175.63,14.16630391]
[1730101700039,70.0,175.66,175.64,14.16630391]
[1730101700224,70.0,175.68,175.65,14.16630391]
[1730101700634,75.6921,175.68,175.64,14.16630391]
[1730101701741,70.0,175.65,175.63,14.16630391]
[1730101702139,70.0,175.67,175.63,14.16630391]
[1730101702344,36.1408,175.72,175.66,14.16630391]
[1730101702345,5.6917,175.7,175.66,14.16630391]
[1730101702521,5.6917,175.7,175.68,14.16630391]
[1730101702722,70.0,175.71,175.69,14.16630391]
[1730101703015,75.6912,175.71,175.69,14.16630391]
[1730101703443,70.0,175.71,175.69,14.16630391]
[1730101703739,75.6912,175.71,175.69,14.16630391]
[1730101704220,70.0,175.71,175.69,14.16630391]
[1730101704622,70.0,175.71,175.7,14.16630391]
[1730101705644,5.6908,175.72,175.7,14.16630391]
[1730101705822,5.6908,175.72,175.64,14.2336]
[1730101705823,75.6908,175.72,175.69,14.16630391]
[1730101706029,70.0,175.7,175.67,14.16630391]
[1730101706425,5.6908,175.72,175.64,19.927]
[1730101706426,70.0,175.72,175.69,14.16630391]
[1730101706627,70.0,175.72,175.7,14.16630391]
[1730101706927,75.6902,175.74,175.71,14.16630391]
[1730101707122,75.6902,175.74,175.72,14.16630391]
[1730101707723,5.6902,175.74,175.72,14.16630391]
[1730101708434,70.0,175.76,175.72,14.16630391]
[1730101708435,5.6899,175.75,175.72,14.16630391]
[1730101708943,75.689,175.78,175.74,14.16630391]
[1730101709145,70.0,175.78,175.75,14.16630391]
[1730101709442,70.0,175.78,175.76,14.16630391]
[1730101709845,70.0,175.78,175.77,14.16630391]
[1730101710627,70.0,175.78,175.76,14.16630391]
[1730101710823,70.0,175.78,175.75,14.16630391]
[1730101711727,75.6892,175.78,175.74,14.16630391]
[1730101713553,5.6899,175.75,175.71,14.16630391]
[1730101713872,70.0,175.74,175.71,14.16630391]
[1730101714738,75.6902,175.74,175.71,14.16630391]
[1730101715050,75.6902,175.74,175.72,14.16630391]
[1730101715232,20.0,175.77,175.73,14.16630391]
[1730101715441,75.6889,175.78,175.76,14.16630391]
[1730101716123,75.6889,175.78,175.7,14.16630391]
[1730101716124,75.6889,175.78,175.75,14.16630391]
[1730101717144,75.6889,175.78,175.76,14.16630391]
[1730101717829,75.6889,175.78,175.75,14.16630391]
[1730101718244,75.6889,175.78,175.71,5.691]
[1730101718245,70.0,175.78,175.76,14.16630391]
[1730101718826,70.0,175.78,175.75,14.16630391]
[1730101719231,75.689,175.78,175.75,14.16630391]
[1730101720052,89.85530391,175.78,175.73,14.16630391]
[1730101721425,75.689,175.78,175.73,14.16630391]
[1730101722044,75.689,175.78,175.74,14.16630391]
[1730101722453,75.689,175.78,175.75,14.16630391]
[1730101722960,75.689,175.78,175.74,14.16630391]
[1730101723829,75.689,175.78,175.73,14.16630391]
[1730101724156,70.0,175.76,175.72,14.16630391]
[1730101724744,70.0,175.76,175.73,14.16630391]
[1730101725648,75.6898,175.76,175.73,14.16630391]
[1730101726355,75.6898,175.76,175.72,14.16630391]
[1730101728133,75.6898,175.76,175.73,14.16630391]
[1730101730039,75.6898,175.76,175.72,14.16630391]
[1730101730259,5.6898,175.76,175.73,14.16630391]
[1730101730472,5.6898,175.76,175.73,9.05767716]
[1730101730646,79.05767716,175.78,175.74,9.05767716]
[1730101730647,75.6889,175.78,175.74,9.05767716]
[1730101730836,70.0,175.8,175.77,9.05767716]
[1730101731162,70.0,175.8,175.7,56.25090864]
[1730101731163,70.0,175.8,175.79,9.05767716]
[1730101731359,100.0,175.8,175.79,9.05767716]
[1730101731865,30.0,175.8,175.79,9.05767716]
[1730101732067,70.0,175.83,175.79,9.05767716]
[1730101732238,70.0,175.88,175.82,9.05767716]
[1730101732540,6.1114,175.9,175.77,20.0122]
[1730101732541,30.0,175.83,175.8,36.23070864]
[1730101733051,30.0,175.83,175.78,0.22549]
[1730101733261,75.6859,175.88,175.78,0.12549]
[1730101733438,75.6859,175.88,175.84,9.05767716]
[1730101734463,75.6859,175.88,175.84,14.13413792]
[1730101734669,75.6859,175.88,175.85,14.13413792]
[1730101736365,75.6859,175.88,175.84,14.13413792]
[1730101737967,5.6859,175.88,175.86,14.13413792]
[1730101738270,75.6859,175.88,175.85,14.13413792]
[1730101739180,75.6859,175.88,175.84,14.13413792]
[1730101740241,75.6859,175.88,175.81,5.6879]
[1730101740242,70.0,175.86,175.82,14.13413792]
[1730101740468,84.13413792,175.86,175.81,14.13413792]
[1730101740641,70.0,175.86,175.81,14.13413792]
[1730101741258,5.6866,175.85,175.82,14.13413792]
[1730101742469,5.6866,175.85,175.83,14.13413792]
[1730101742676,5.6866,175.85,175.82,14.13413792]
[1730101743045,5.6866,175.85,175.83,14.13413792]
[1730101743374,75.6863,175.86,175.83,14.13413792]
[1730101743667,5.6858,175.88,175.85,14.13413792]
[1730101744051,5.6858,175.88,175.87,14.13413792]
[1730101744249,30.0,175.88,175.87,14.13413792]
[1730101744558,70.0,175.92,175.87,14.13413792]
[1730101744766,70.0,175.94,175.91,14.13413792]
[1730101745074,70.0,175.94,175.92,14.13413792]
[1730101745664,75.6838,175.94,175.92,14.13413792]
[1730101745869,75.6838,175.94,175.91,14.13413792]
[1730101746082,75.6838,175.94,175.9,14.13413792]
[1730101746378,84.13413792,175.92,175.86,14.13413792]
[1730101746556,14.13413792,175.91,175.86,14.13413792]
[1730101746880,84.13413792,175.92,175.86,14.13413792]
[1730101747063,84.13413792,175.92,175.87,14.13413792]
[1730101747950,70.0,175.92,175.89,14.13413792]
[1730101748157,5.684,175.93,175.91,14.13413792]
[1730101748365,5.684,175.93,175.89,14.13413792]
[1730101748560,5.684,175.93,175.9,14.13413792]
[1730101749167,30.0,175.91,175.9,14.13413792]
[1730101749576,5.6847,175.91,175.89,14.13413792]
[1730101749878,5.6847,175.91,175.84,19.9042]
[1730101749879,75.6847,175.91,175.86,14.13413792]
[1730101750479,89.81883792,175.91,175.86,14.13413792]
[1730101750773,70.0,175.86,175.81,14.13413792]
[1730101750975,84.13413792,175.86,175.81,14.13413792]
[1730101751180,5.6866,175.85,175.81,14.13413792]
[1730101752782,70.0,175.88,175.84,14.13413792]
[1730101753072,70.0,175.88,175.85,14.13413792]
[1730101753379,5.6861,175.87,175.86,14.13413792]
[1730101753566,14.2115,175.92,175.86,14.13413792]
[1730101753567,5.6853,175.89,175.86,14.13413792]
[1730101753765,70.0,175.88,175.85,14.13413792]
[1730101755078,5.686,175.87,175.85,14.13413792]
[1730101755469,5.686,175.87,175.81,41.7648]
[1730101755652,5.686,175.87,175.84,14.13413792]
[1730101758681,5.686,175.87,175.83,14.13413792]
[1730101760979,5.686,175.87,175.84,14.13413792]
[1730101761883,5.686,175.87,175.86,14.13413792]
[1730101762868,5.6853,175.89,175.86,14.13413792]
[1730101763076,70.0,175.96,175.88,14.13413792]
[1730101763262,70.0,175.96,175.94,14.13413792]
[1730101763461,30.0,175.95,175.92,14.13413792]
[1730101763667,44.13413792,175.95,175.9,14.13413792]
[1730101763880,70.0,175.94,175.9,14.13413792]
[1730101764083,70.0,175.94,175.89,14.13413792]
[1730101764384,30.0,175.93,175.89,14.13413792]
[1730101764974,5.6844,175.92,175.9,14.13413792]
[1730101765193,5.6844,175.92,175.91,14.13413792]
[1730101765797,5.6827,175.97,175.91,14.13413792]
[1730101765966,5.6827,175.97,175.94,14.13413792]
[1730101766160,5.6827,175.97,175.95,14.13413792]
[1730101766357,5.6827,175.97,175.94,14.13413792]
[1730101767286,5.6821,175.99,175.96,14.13413792]
[1730101767463,5.6821,175.99,175.97,14.13413792]
[1730101767784,5.6821,175.99,175.95,14.13413792]
[1730101772485,5.6821,175.99,175.9,30.53263792]
[1730101772486,70.0,175.98,175.9,22.0834]
[1730101772782,70.0,175.95,175.9,14.13413792]
[1730101772990,84.13413792,175.95,175.89,14.13413792]
[1730101773282,70.0,175.95,175.91,14.13413792]
[1730101773867,5.6837,175.94,175.91,14.13413792]
[1730101774558,19.81783792,175.94,175.88,14.13413792]
[1730101774764,5.6837,175.94,175.89,14.13413792]
[1730101778185,5.6837,175.94,175.9,14.13413792]
[1730101778366,5.6837,175.94,175.91,14.13413792]
[1730101779094,5.6837,175.94,175.92,14.13413792]
[1730101779473,5.6831,175.96,175.92,14.13413792]
[1730101780169,5.6831,175.96,175.91,14.13413792]
[1730101780375,19.81723792,175.96,175.91,14.13413792]
[1730101780601,19.81723792,175.96,175.88,14.13413792]
[1730101780602,14.13413792,175.94,175.88,14.13413792]
[1730101780903,14.13413792,175.93,175.88,14.13413792]
[1730101781270,84.13413792,175.93,175.88,14.13413792]
[1730101781485,5.6844,175.92,175.87,14.13413792]
[1730101782382,5.6844,175.92,175.88,14.13413792]
[1730101783674,5.6844,175.92,175.87,14.13413792]
[1730101783894,70.0,175.91,175.86,14.13413792]
[1730101784395,84.13413792,175.89,175.83,14.13413792]
[1730101785184,84.13413792,175.89,175.84,14.13413792]
[1730101785390,5.6856,175.88,175.84,14.13413792]
[1730101788572,5.6856,175.88,175.82,5.6875]
[1730101788573,5.6856,175.88,175.86,14.13413792]
[1730101789089,5.685,175.9,175.86,14.13413792]
[1730101789288,5.6844,175.92,175.89,14.13413792]
[1730101789669,5.6844,175.92,175.9,14.13413792]
[1730101790187,5.6844,175.92,175.88,14.13413792]
[1730101791291,19.81853792,175.92,175.87,14.13413792]
[1730101792578,70.0,175.9,175.86,14.13413792]
[1730101793677,70.0,175.9,175.85,14.13413792]
[1730101794096,70.0,175.9,175.86,14.13413792]
[1730101794097,5.6853,175.89,175.86,14.13413792]
[1730101794596,5.6853,175.89,175.87,14.13413792]
[1730101795181,5.6853,175.89,175.86,14.13413792]
[1730101798205,5.6853,175.89,175.85,14.13413792]
[1730101798787,70.0,175.87,175.82,14.13413792]
[1730101799092,75.6853,175.89,175.84,14.13413792]
[1730101799291,75.6853,175.89,175.85,14.13413792]
[1730101800006,75.6853,175.89,175.86,14.13413792]
[1730101800691,5.6853,175.89,175.87,14.13413792]
[1730101801403,5.6853,175.89,175.86,14.13413792]
[1730101801787,5.685,175.9,175.86,14.13413792]
[1730101803608,5.685,175.9,175.87,14.13413792]
[1730101804816,84.13413792,175.89,175.84,14.13413792]
[1730101805297,70.0,175.89,175.85,14.13413792]
[1730101805913,5.6856,175.88,175.85,14.13413792]
[1730101806206,5.6856,175.88,175.84,14.13413792]
[1730101807287,84.13413792,175.87,175.81,14.13413792]
[1730101807903,14.13413792,175.86,175.81,14.13413792]
[1730101808203,84.13413792,175.87,175.81,14.13413792]
[1730101808404,84.13413792,175.87,175.77,0.1]
[1730101808405,5.6863,175.86,175.83,14.13413792]
[1730101808808,70.0,175.89,175.85,14.13413792]
[1730101808986,5.6856,175.88,175.85,14.13413792]
[1730101809403,5.6856,175.88,175.86,14.13413792]
[1730101809604,5.6856,175.88,175.85,14.13413792]
[1730101809814,5.6856,175.88,175.84,14.13413792]
[1730101812285,5.6856,175.88,175.85,14.13413792]
[1730101813487,5.6856,175.88,175.86,14.13413792]
[1730101814406,84.2118,175.91,175.87,14.13413792]
[1730101814599,5.685,175.9,175.87,14.13413792]
[1730101815015,5.685,175.9,175.88,14.13413792]
[1730101815192,5.685,175.9,175.89,14.13413792]
[1730101815703,5.6837,175.94,175.89,14.13413792]
[1730101816004,5.6837,175.94,175.93,14.13413792]
[1730101817731,5.6837,175.94,175.92,14.13413792]
[1730101818087,5.6837,175.94,175.91,14.13413792]
[1730101818812,5.6837,175.94,175.92,14.13413792]
[1730101820915,5.6821,175.99,175.93,14.13413792]
[1730101821096,5.6821,175.99,175.98,14.13413792]
[1730101824516,5.6821,175.99,175.93,6.227]
[1730101824517,34.01973792,176.01,175.96,14.13413792]
[1730101825304,14.13413792,175.99,175.93,14.13413792]
[1730101825705,70.0,175.97,175.92,14.13413792]
[1730101825910,14.13413792,175.96,175.91,14.13413792]
[1730101826511,5.6834,175.95,175.91,14.13413792]
[1730101826897,5.6834,175.95,175.89,15.5295]
[1730101827110,5.6834,175.95,175.91,14.13413792]
[1730101827315,104.02603792,175.95,175.88,6.227]
[1730101827518,104.02603792,175.95,175.9,14.13413792]
[1730101828031,14.13413792,175.94,175.89,14.13413792]
[1730101828702,5.684,175.93,175.9,14.13413792]
[1730101830027,19.8919,175.95,175.91,14.13413792]
[1730101830317,89.8919,175.95,175.91,14.13413792]
[1730101831310,104.02603792,175.95,175.9,14.13413792]
[1730101831722,14.13413792,175.94,175.89,14.13413792]
[1730101832306,89.8919,175.95,175.89,14.13413792]
[1730101832307,104.02603792,175.95,175.89,14.13413792]
[1730101832699,14.13413792,175.94,175.89,14.13413792]
[1730101833626,5.684,175.93,175.89,14.13413792]
[1730101834406,19.81813792,175.93,175.88,14.13413792]
[1730101834616,19.81813792,175.93,175.87,14.13413792]
[1730101834617,14.13413792,175.92,175.87,14.13413792]
[1730101835535,5.685,175.9,175.87,14.13413792]
[1730101838427,5.685,175.9,175.88,14.13413792]
[1730101841009,5.6844,175.92,175.88,14.13413792]
[1730101843827,19.81853792,175.92,175.87,14.13413792]
[1730101844331,34.02953792,175.92,175.87,14.13413792]
[1730101845133,84.13413792,175.91,175.85,14.13413792]
[1730101845510,14.13413792,175.9,175.85,14.13413792]
[1730101846438,5.6853,175.89,175.85,14.13413792]
[1730101848537,5.6853,175.89,175.85,9.04525185]
[1730101849823,14.73055185,175.89,175.84,9.04525185]
[1730101851137,9.04525185,175.88,175.83,9.04525185]
[1730101852235,23.25865185,175.89,175.83,9.04525185]
[1730101852442,23.25865185,175.89,175.84,9.04525185]
[1730101852759,30.0,175.87,175.84,9.04525185]
[1730101853538,5.6863,175.86,175.84,9.04525185]
[1730101854629,5.6856,175.88,175.84,9.04525185]
[1730101855652,5.6856,175.88,175.87,9.04525185]
[1730101856537,19.8956,175.92,175.87,9.04525185]
[1730101856743,28.94085185,175.92,175.87,9.04525185]
[1730101857242,28.94085185,175.92,175.88,9.04525185]
[1730101858526,19.8956,175.92,175.89,9.04525185]
[1730101858824,30.0,175.9,175.89,9.04525185]
[1730101859142,5.6844,175.92,175.89,9.04525185]
[1730101859339,5.6844,175.92,175.91,9.04525185]
[1730101860260,5.6834,175.95,175.91,9.04525185]
[1730101860426,5.6831,175.96,175.91,9.04525185]
[1730101860748,5.6831,175.96,175.92,9.04525185]
[1730101861122,14.72835185,175.96,175.91,9.04525185]
[1730101862247,5.6831,175.96,175.91,9.04525185]
[1730101862548,5.6831,175.96,175.92,9.04525185]
[1730101862925,5.6831,175.96,175.93,9.04525185]
[1730101863123,5.6831,175.96,175.95,9.04525185]
[1730101863328,35.6831,175.96,175.95,9.04525185]
[1730101864433,30.0,175.96,175.95,9.04525185]
[1730101864931,5.6814,176.01,175.95,9.04525185]
[1730101865136,9.04525185,176.05,176.0,9.04525185]
[1730101865344,30.0,176.01,176.0,9.04525185]
[1730101865930,9.04525185,176.05,176.0,9.04525185]
[1730101866147,5.6805,176.04,176.0,9.04525185]
[1730101866654,5.6805,176.04,175.95,0.1]
[1730101866655,19.79079904,176.04,175.99,14.11029904]
[1730101868746,19.79079904,176.04,175.98,14.11029904]
[1730101869333,14.11029904,176.01,175.96,14.11029904]
[1730101870465,44.11029904,176.0,175.95,14.11029904]
[1730101871453,5.6821,175.99,175.95,14.11029904]
[1730101872047,14.11029904,175.98,175.93,14.11029904]
[1730101872449,14.11029904,175.97,175.92,14.11029904]
[1730101872757,14.11029904,175.96,175.91,14.11029904]
[1730101872931,14.11029904,175.95,175.9,14.11029904]
[1730101873128,14.11029904,175.94,175.89,14.11029904]
[1730101873434,19.79429904,175.93,175.88,14.11029904]
[1730101874143,14.11029904,175.92,175.87,14.11029904]
[1730101875049,34.00439904,175.93,175.87,14.11029904]
[1730101875278,34.00439904,175.93,175.88,14.11029904]
[1730101876152,5.684,175.93,175.91,14.11029904]
[1730101876536,5.684,175.93,175.9,14.11029904]
[1730101876733,5.684,175.93,175.91,14.11029904]
[1730101877135,98.31789904,175.97,175.91,14.11029904]
[1730101877356,14.11029904,175.95,175.89,14.11029904]